bitfinex/quotes_ETHUSD_20230831
["timestamp","ask_amount","ask_price","bid_price","bid_amount"]
[1693504057496,26.9880633,1661.1,1661.0,0.1]
[1693504057671,29.89856963,1661.1,1661.0,0.1]
[1693504060598,22.4729833,1661.1,1661.0,0.1]
[1693504060810,19.4729833,1661.1,1661.0,0.1]
[1693504061181,19.4729833,1661.1,1661.0,0.10434658]
[1693504061495,22.4729833,1661.1,1661.0,0.10434658]
[1693504061994,19.4729833,1661.1,1661.0,0.10434658]
[1693504062211,21.42028163,1661.1,1661.0,0.10434658]
[1693504063503,4.51482,1661.2,1661.0,0.10434658]
[1693504064209,4.94434209,1661.3,1661.1,1.513]
[1693504064714,4.94434209,1661.3,1661.1,4.51506]
[1693504064885,4.94434209,1661.3,1661.1,6.02806]
[1693504065312,4.94434209,1661.3,1661.2,0.00433158]
[1693504065811,4.94434209,1661.3,1661.2,4.51913158]
[1693504065994,4.94434209,1661.3,1661.2,5.57383574]
[1693504067802,4.94434209,1661.3,1661.2,0.00433158]
[1693504067999,18.48793209,1661.3,1661.2,0.00433158]
[1693504068241,18.48793209,1661.3,1661.0,0.1]
[1693504068242,21.41567539,1661.3,1661.0,0.1]
[1693504068438,21.41567539,1661.3,1661.0,0.102]
[1693504068439,2.9277433,1661.2,1661.0,0.102]
[1693504068647,9.03016,1661.1,1661.0,0.1]
[1693504069042,13.54524,1661.1,1661.0,0.1]
[1693504069243,16.4729833,1661.1,1661.0,0.10434658]
[1693504069553,18.33443838,1661.1,1661.0,0.10434658]
[1693504070059,18.57560338,1661.1,1661.0,0.10434658]
[1693504075024,12.45887209,1661.3,1661.0,4.61969658]
[1693504075025,4.94434209,1661.3,1661.0,4.61969658]
[1693504075224,12.38664539,1661.3,1661.0,0.10434658]
[1693504075440,16.90120539,1661.3,1661.0,0.10434658]
[1693504078375,19.39237248,1661.3,1661.0,0.10434658]
[1693504078694,4.51508,1661.1,1661.0,0.10434658]
[1693504083242,7.4428233,1661.1,1661.0,0.10434658]
[1693504083679,16.4729833,1661.1,1661.0,0.10434658]
[1693504084183,16.4729833,1661.1,1661.0,0.1]
[1693504084355,18.78931663,1661.1,1661.0,0.1]
[1693504085389,6.69035001,1661.2,1661.0,0.1]
[1693504085390,12.02977,1661.2,1661.0,0.1]
[1693504085559,14.9575133,1661.2,1661.0,0.1]
[1693504086243,14.9575133,1661.2,1661.1,0.00416785]
[1693504086447,17.9575133,1661.2,1661.1,0.00416785]
[1693504086672,21.01116655,1661.2,1661.1,0.00416785]
[1693504087175,21.64010655,1661.2,1661.1,0.00416785]
[1693504088142,26.15506655,1661.2,1661.1,0.00416785]
[1693504088941,27.09847656,1661.2,1661.1,0.00416785]
[1693504089145,27.09847656,1661.2,1661.0,0.1]
[1693504089384,19.18283096,1661.1,1661.0,0.1]
[1693504089885,19.81177096,1661.1,1661.0,0.1]
[1693504090269,19.81177096,1661.1,1661.0,0.10417535]
[1693504090468,11.19744325,1661.2,1661.0,0.10417535]
[1693504090682,4.51508,1661.1,1661.0,0.10417535]
[1693504091494,9.03016,1661.1,1661.0,0.10417535]
[1693504091663,4.51508,1661.1,1661.0,0.10417535]
[1693504092475,9.03016,1661.1,1661.0,0.10417535]
[1693504092993,9.6591,1661.1,1661.0,0.10417535]
[1693504093196,12.36897566,1661.1,1661.0,0.10417535]
[1693504093696,7.85389566,1661.1,1661.0,0.10417535]
[1693504094899,16.88405566,1661.1,1661.0,0.10417535]
[1693504095105,20.82746567,1661.1,1661.0,0.10417535]
[1693504095603,23.12626897,1661.1,1661.0,0.10417535]
[1693504096190,23.12626897,1661.1,1661.0,0.1]
[1693504096776,24.63926897,1661.1,1661.0,0.1]
[1693504097089,25.26820898,1661.1,1661.0,0.1]
[1693504097667,25.27523958,1661.1,1661.0,0.1]
[1693504098092,25.51644458,1661.1,1661.0,0.1]
[1693504098294,3.0,1660.9,1660.8,0.002]
[1693504098470,13.54767,1660.8,1660.7,0.1]
[1693504098683,23.39982875,1660.8,1660.7,0.1]
[1693504099094,24.66335619,1660.8,1660.7,0.1]
[1693504099277,23.39982875,1660.8,1660.7,0.1]
[1693504099493,18.88393875,1660.8,1660.7,0.1]
[1693504099702,24.03140515,1660.8,1660.7,0.1]
[1693504100274,24.03140515,1660.8,1660.7,0.10419786]
[1693504100776,23.08375677,1660.8,1660.7,0.10419786]
[1693504101170,23.08375677,1660.8,1660.7,0.1]
[1693504103607,22.45218037,1660.8,1660.7,0.1]
[1693504103822,0.6315764,1660.8,1660.7,0.1]
[1693504104022,0.94764838,1660.9,1660.7,0.1]
[1693504104023,0.6315764,1660.9,1660.7,0.1]
[1693504104176,5.3880014,1661.1,1660.7,6.12916]
[1693504104510,9.271635,1661.1,1660.8,0.614916]
[1693504105211,9.271635,1661.1,1660.9,0.00418286]
[1693504106293,9.271635,1661.1,1660.8,0.002]
[1693504107387,9.271635,1661.1,1660.9,0.00418286]
[1693504107906,4.756415,1661.1,1660.9,0.00418286]
[1693504108109,3.241205,1661.1,1660.9,0.00418286]
[1693504108406,3.0,1661.1,1660.8,4.51785]
[1693504108615,3.0,1661.1,1660.8,5.43124]
[1693504108978,7.51509,1661.1,1660.8,5.43124]
[1693504109173,7.51509,1661.1,1660.9,0.00418286]
[1693504109512,12.03018,1661.1,1660.9,0.00418286]
[1693504109672,12.6617564,1661.1,1660.9,0.00418286]
[1693504109870,15.5894997,1661.1,1660.9,0.00418286]
[1693504110320,15.5894997,1661.1,1660.8,0.002]
[1693504110483,6.07430997,1661.0,1660.8,0.002]
[1693504110691,6.07430997,1661.0,1660.7,0.102]
[1693504111274,6.07430997,1661.0,1660.8,0.00411343]
[1693504113388,2.26352744,1661.3,1661.0,8.454]
[1693504113590,0.002,1661.4,1661.2,24.3952]
[1693504113779,1.57815736,1661.8,1661.4,4.51421]
[1693504113979,2.21042186,1661.9,1661.5,12.479291]
[1693504114217,0.94689442,1661.9,1661.5,19.9249237]
[1693504114423,0.94689442,1661.9,1661.7,4.51345]
[1693504114775,0.94689442,1661.9,1661.7,6.63145]
[1693504114975,0.94689442,1661.9,1661.6,8.62414237]
[1693504115620,9.97235442,1662.0,1661.6,8.62414237]
[1693504116188,18.74869186,1662.0,1661.5,0.0038994]
[1693504116409,0.94689442,1661.9,1661.5,0.0038994]
[1693504116617,9.02643,1661.8,1661.5,0.0038994]
[1693504116778,9.02837,1661.8,1661.5,0.0038994]
[1693504116982,13.54154,1661.8,1661.5,0.0038994]
[1693504117310,9.02834,1661.8,1661.3,8.51371]
[1693504117488,0.002,1661.7,1661.3,7.93535]
[1693504117701,0.002,1661.7,1661.1,4.0416]
[1693504117702,9.02749,1661.6,1661.1,4.0416]
[1693504117941,9.02749,1661.6,1661.0,2.118]
[1693504117942,2.9297433,1661.5,1661.0,2.118]
[1693504118247,2.9277433,1661.5,1661.3,4.51452]
[1693504118447,9.02929,1661.7,1661.3,4.51452]
[1693504118602,4.51572,1661.6,1661.2,4.51474]
[1693504118805,0.002,1661.5,1661.2,4.51474]
[1693504119251,0.002,1661.5,1661.3,0.00377611]
[1693504119421,9.02963,1661.6,1661.3,0.00377611]
[1693504120254,9.02963,1661.6,1661.1,4.51492]
[1693504120565,0.002,1661.5,1660.9,4.0436]
[1693504120839,4.51436,1661.4,1661.0,0.002]
[1693504121001,4.51436,1661.4,1661.0,4.51734]
[1693504121339,4.51436,1661.4,1661.0,4.51534]
[1693504122122,4.51436,1661.4,1660.9,6.6356]
[1693504122339,2.9277433,1661.3,1661.0,0.002]
[1693504122538,9.0296,1661.2,1660.8,0.002]
[1693504122746,7.4425433,1661.2,1660.8,4.51788]
[1693504122907,7.4425433,1661.2,1660.9,0.002]
[1693504123240,13.15306163,1661.2,1660.9,0.002]
[1693504123440,13.15306163,1661.2,1660.8,0.002]
[1693504123744,7.4425433,1661.2,1660.8,4.51786]
[1693504123939,7.4425433,1661.2,1660.9,0.002]
[1693504124647,11.9573433,1661.2,1660.9,0.002]
[1693504124835,11.9573433,1661.2,1660.8,0.002]
[1693504126042,2.9277433,1661.1,1660.8,0.002]
[1693504126249,9.0307,1661.0,1660.8,0.002]
[1693504126546,9.0307,1661.0,1660.7,0.102]
[1693504128942,11.9584433,1661.0,1660.7,0.102]
[1693504129148,16.4737933,1661.0,1660.7,0.102]
[1693504130827,11.9584433,1661.0,1660.7,0.102]
[1693504131026,4.51589,1660.8,1660.7,0.102]
[1693504131230,4.51589,1660.8,1660.7,0.1]
[1693504132226,9.03178,1660.8,1660.7,0.1]
[1693504132427,13.54767,1660.8,1660.7,0.1]
[1693504133044,9.03178,1660.8,1660.7,0.1]
[1693504133732,10.50610643,1660.8,1660.7,0.1]
[1693504133965,4.51589,1660.8,1660.7,0.1]
[1693504135883,9.03178,1660.8,1660.7,0.1]
[1693504136231,11.9595233,1660.8,1660.7,0.1]
[1693504136438,16.4754133,1660.8,1660.7,0.1]
[1693504136938,11.9595233,1660.8,1660.7,0.1]
[1693504137131,7.12569017,1661.0,1660.7,0.1]
[1693504137132,3.0,1661.0,1660.7,0.1]
[1693504137337,3.0,1661.0,1660.7,4.61816]
[1693504137338,0.241233,1660.8,1660.7,4.61816]
[1693504137537,0.241233,1660.8,1660.7,0.561816]
[1693504137853,11.9585933,1661.0,1660.7,0.561816]
[1693504138181,4.51563,1660.9,1660.7,0.102]
[1693504138384,4.51563,1660.9,1660.7,0.1]
[1693504139475,9.03126,1660.9,1660.7,0.1]
[1693504140376,4.51563,1660.9,1660.7,0.1]
[1693504140667,7.4431033,1661.0,1660.7,0.1]
[1693504140668,11.9585933,1661.0,1660.7,0.1]
[1693504140873,4.51569,1660.9,1660.7,0.102]
[1693504141167,4.51569,1660.9,1660.7,0.1]
[1693504141567,7.4431033,1661.0,1660.7,0.1]
[1693504141774,7.4431033,1661.0,1660.7,0.102]
[1693504142273,9.03085,1661.0,1660.7,0.563826]
[1693504143315,16.4740833,1661.0,1660.7,0.102]
[1693504144012,2.9277433,1660.9,1660.7,0.102]
[1693504144214,8.268729,1660.8,1660.7,0.1]
[1693504144427,3.752839,1660.8,1660.7,0.1]
[1693504144795,11.9591533,1660.9,1660.7,0.1]
[1693504145121,6.16309433,1660.9,1660.7,0.1]
[1693504145280,4.51563,1660.9,1660.7,0.1]
[1693504146415,9.03138,1660.9,1660.7,0.1]
[1693504146787,4.51563,1660.9,1660.7,0.1]
[1693504148118,9.03138,1660.9,1660.7,0.1]
[1693504149917,2.41178,1661.3,1660.8,2.118]
[1693504150219,4.5144,1661.4,1661.1,2.118]
[1693504150518,35.11412,1661.5,1661.0,6.63308]
[1693504150721,33.5277433,1661.5,1661.1,4.51508]
[1693504150910,38.0417733,1661.5,1661.1,6.63308]
[1693504151417,38.0417733,1661.5,1661.1,4.51508]
[1693504151616,47.17957177,1661.5,1661.0,7.748136]
[1693504151817,47.17957177,1661.5,1661.0,5.630136]
[1693504152184,16.57957177,1661.5,1661.0,5.630136]
[1693504152388,12.4399252,1661.5,1661.0,7.748136]
[1693504152941,16.9539552,1661.5,1661.0,1.115056]
[1693504153088,16.9539552,1661.5,1660.9,0.002]
[1693504153288,17.8993288,1661.5,1660.9,0.002]
[1693504153488,9.02927,1661.3,1660.9,0.002]
[1693504154513,6.54199,1661.4,1660.9,0.002]
[1693504154514,6.54199,1661.4,1660.9,11.15118]
[1693504154681,4.9554433,1661.4,1661.0,6.63519]
[1693504154888,4.9554433,1661.4,1661.1,0.663519]
[1693504155193,7.4420333,1661.4,1661.1,0.663519]
[1693504155412,11.9563233,1661.4,1661.0,2.118]
[1693504155610,11.9563233,1661.4,1660.9,6.63549]
[1693504155920,16.4706133,1661.4,1661.0,0.002]
[1693504156219,18.5051133,1661.4,1661.0,0.002]
[1693504156523,21.14094561,1661.4,1660.9,0.002]
[1693504156821,21.14094561,1661.4,1660.8,0.002]
[1693504157037,22.99974561,1661.4,1660.8,0.002]
[1693504157327,22.99974561,1661.4,1660.8,1.514]
[1693504157528,22.99974561,1661.4,1660.9,0.002]
[1693504161695,23.94511862,1661.4,1660.9,0.002]
[1693504163943,25.20561597,1661.4,1660.9,0.002]
[1693504164306,9.02968,1661.2,1660.9,0.002]
[1693504165045,4.51482,1661.2,1660.9,0.002]
[1693504165259,2.97987301,1661.4,1661.0,1.512]
[1693504165417,0.94537301,1661.4,1661.1,1.512]
[1693504165748,5.45967301,1661.4,1661.1,1.512]
[1693504166113,9.97397301,1661.4,1661.1,1.512]
[1693504166451,9.97397301,1661.4,1660.9,11.147931]
[1693504166615,9.97397301,1661.4,1661.0,1.1167931]
[1693504166815,9.97397301,1661.4,1661.0,2.6267931]
[1693504167047,9.97397301,1661.4,1661.0,7.1421331]
[1693504167423,1.88957789,1661.5,1661.3,1.512]
[1693504167626,0.94737301,1661.6,1661.4,1.512]
[1693504167953,0.94916823,1661.7,1661.4,7.080128]
[1693504168259,0.002,1661.7,1661.5,4.51384]
[1693504168410,0.89435101,1661.8,1661.6,1.963384]
[1693504168753,0.94716823,1662.0,1661.7,1.512]
[1693504168754,0.002,1661.9,1661.7,1.512]
[1693504168916,6.38718418,1662.0,1661.7,1.512]
[1693504169260,6.86647218,1662.0,1661.7,1.512]
[1693504169464,6.86647218,1662.0,1661.7,6.02543]
[1693504169744,11.37923218,1662.0,1661.7,1.0990384]
[1693504169945,10.43206395,1662.0,1661.6,1.963384]
[1693504170151,0.002,1661.9,1661.6,0.451384]
[1693504170327,4.51491,1661.9,1661.6,0.451384]
[1693504173027,0.002,1661.9,1661.6,13.992514]
[1693504173385,0.002,1662.1,1661.8,4.51309]
[1693504173929,4.51436,1662.1,1661.8,4.51309]
[1693504174685,4.51436,1662.1,1661.7,10.4259014]
[1693504174855,4.51436,1662.1,1661.7,1.3992514]
[1693504174856,0.002,1662.0,1661.7,1.3992514]
[1693504175052,4.51469,1662.0,1661.7,1.3992514]
[1693504176555,0.002,1662.0,1661.7,1.3992514]
[1693504176773,0.002,1662.0,1661.7,5.9126214]
[1693504177072,0.002,1662.0,1661.8,0.59126214]
[1693504177272,4.51436,1662.1,1661.8,0.59126214]
[1693504178950,8.97687,1662.1,1661.8,0.59126214]
[1693504179454,8.97687,1662.1,1661.7,1.3992514]
[1693504179639,0.002,1662.0,1661.6,4.51368]
[1693504179839,4.51474,1662.0,1661.6,9.02728]
[1693504180039,0.002,1661.9,1661.6,9.02728]
[1693504180774,0.002,1662.0,1661.6,11.14228]
[1693504182175,0.002,1662.0,1661.6,15.656]
[1693504182365,0.002,1662.1,1661.9,4.5129]
[1693504182542,0.002,1662.2,1661.9,9.0258]
[1693504183757,0.002,1662.2,1661.9,4.5129]
[1693504185250,4.5141,1662.2,1661.8,8.62244]
[1693504185450,0.002,1662.1,1661.8,6.50744]
[1693504185687,0.002,1662.1,1661.8,7.97089035]
[1693504190848,0.002,1662.1,1661.8,10.08589035]
[1693504197096,0.002,1662.1,1661.8,14.59906035]
[1693504197286,0.002,1662.1,1661.9,1.51]
[1693504197593,4.5141,1662.2,1661.9,1.51]
[1693504198866,4.5141,1662.2,1661.9,6.02286]
[1693504202788,4.5141,1662.2,1661.9,1.51]
[1693504205201,4.5141,1662.2,1661.8,13.99394035]
[1693504205404,0.002,1662.1,1661.8,13.99394035]
[1693504205611,0.002,1662.1,1661.9,1.39939404]
[1693504205771,9.02637,1662.2,1661.9,1.39939404]
[1693504205969,4.5141,1662.2,1661.8,12.53049]
[1693504206168,0.002,1662.1,1661.8,8.01744]
[1693504211305,3.002,1662.1,1661.8,8.01744]
[1693504211698,3.002,1662.1,1661.8,6.02304]
[1693504212074,3.002,1662.1,1661.7,4.51328]
[1693504212075,7.51439,1662.1,1661.7,4.51328]
[1693504212285,0.753439,1662.0,1661.7,4.51328]
[1693504212485,0.753439,1662.0,1661.6,9.02717]
[1693504212692,0.002,1661.9,1661.6,4.51357]
[1693504217116,0.002,1661.9,1661.6,9.02729]
[1693504222431,0.002,1661.9,1661.8,1.51]
[1693504222628,0.94377962,1662.0,1661.8,15.04951]
[1693504222791,0.94377962,1662.0,1661.9,1.504951]
[1693504222999,0.94377962,1662.0,1661.9,10.530751]
[1693504224328,0.94377962,1662.0,1661.9,12.040751]
[1693504224900,1.89139811,1662.0,1661.9,12.040751]
[1693504225331,0.94377962,1662.0,1661.9,12.040751]
[1693504225829,1.89139811,1662.0,1661.9,12.040751]
[1693504226005,1.89139811,1662.0,1661.9,10.530751]
[1693504227119,0.94761849,1662.0,1661.9,10.530751]
[1693504227835,3.94761849,1662.1,1661.9,17.9713943]
[1693504227997,3.0,1662.1,1662.0,19.97973265]
[1693504229835,3.0,1662.1,1662.0,6.51672935]
[1693504230925,3.0,1662.1,1662.0,2.00409935]
[1693504231108,3.0,1662.1,1662.0,0.48]
[1693504231509,3.0,1662.1,1662.0,4.99263]
[1693504233346,3.0,1662.1,1662.0,4.99703268]
[1693504235830,3.0,1662.1,1662.0,0.00440268]
[1693504241960,3.0,1662.1,1662.0,9.02966268]
[1693504242141,3.0,1662.1,1662.0,10.53489895]
[1693504244456,3.0,1662.1,1662.0,12.04489895]
[1693504246737,3.0,1662.1,1662.0,7.53226895]
[1693504249157,3.0,1662.1,1662.0,6.02226895]
[1693504250340,3.0,1662.1,1662.0,4.51703268]
[1693504250662,7.51236,1662.1,1662.0,0.00440268]
[1693504251365,7.51236,1662.1,1661.7,7.95512]
[1693504251366,3.0,1662.1,1661.8,0.49272514]
[1693504251562,3.002,1662.1,1661.7,12.46844]
[1693504251752,0.002,1662.0,1661.7,14.51435765]
[1693504252338,0.002,1662.0,1661.8,1.51441766]
[1693504252563,3.002,1662.1,1661.9,9.0258]
[1693504252769,3.0,1662.1,1661.9,9.0258]
[1693504253268,3.0,1662.1,1662.0,0.00440268]
[1693504255453,3.0,1662.1,1662.0,4.51703268]
[1693504256971,3.0,1662.1,1662.0,0.00440268]
[1693504262053,3.0,1662.1,1662.0,4.51703268]
[1693504264175,3.0,1662.1,1662.0,0.00440268]
[1693504268053,3.94761849,1662.1,1662.0,0.00440268]
[1693504269158,8.45997849,1662.1,1662.0,0.00440268]
[1693504269357,10.07838447,1662.1,1661.8,1.98635802]
[1693504269552,8.46197849,1662.1,1661.8,1.98635802]
[1693504270382,3.94961849,1662.1,1661.8,1.98635802]
[1693504270891,3.94961849,1662.1,1661.8,6.49952802]
[1693504273291,3.94961849,1662.1,1661.9,0.00441017]
[1693504273496,3.94761849,1662.1,1661.9,0.00441017]
[1693504274472,5.21110981,1662.1,1661.9,0.00441017]
[1693504274890,3.94761849,1662.1,1661.9,0.00441017]
[1693504276003,5.21110981,1662.1,1661.9,0.00441017]
[1693504276704,0.94761849,1662.0,1661.9,0.00441017]
[1693504277407,6.7484913,1662.0,1661.9,0.00441017]
[1693504277910,8.8772913,1662.0,1661.9,0.00441017]
[1693504278294,8.8772913,1662.0,1661.6,9.0274]
[1693504278605,0.95026237,1661.9,1661.6,9.0274]
[1693504279193,0.95026237,1661.9,1661.7,0.00425462]
[1693504279509,1.93101774,1661.9,1661.7,4.51769462]
[1693504282319,0.98275537,1661.9,1661.7,4.51769462]
[1693504284509,8.56406235,1662.0,1661.7,4.51769462]
[1693504284684,3.07906237,1662.0,1661.7,4.51769462]
[1693504284882,0.002,1662.0,1661.7,10.54114462]
[1693504288296,0.94566884,1662.0,1661.7,10.54114462]
[1693504292906,0.94566884,1662.0,1661.7,15.05459462]
[1693504296099,0.94566884,1662.0,1661.7,4.51769462]
[1693504296432,2.20459909,1662.0,1661.7,9.03114462]
[1693504296733,0.94566884,1662.0,1661.7,9.03114462]
[1693504306811,0.94566884,1662.0,1661.7,15.05459462]
[1693504307843,0.94566884,1662.0,1661.7,10.54114462]
[1693504308648,0.94566884,1662.0,1661.7,15.05459462]
[1693504310141,0.94566884,1662.0,1661.8,1.51]
[1693504310342,0.94366884,1662.0,1661.8,1.51]
[1693504310551,0.94366884,1662.0,1661.9,4.5129]
[1693504311241,0.94366884,1662.0,1661.9,4.51713963]
[1693504322377,3.94826237,1662.1,1661.9,11.59405659]
[1693504322378,3.0,1662.1,1661.9,11.59405659]
[1693504322533,3.0,1662.1,1662.0,0.48]
[1693504322738,3.0,1662.1,1662.0,15.52789]
[1693504323469,3.0,1662.1,1662.0,18.45986544]
[1693504323772,3.0,1662.1,1662.0,20.43489883]
[1693504325277,3.0,1662.1,1662.0,21.94489883]
[1693504325574,3.0,1662.1,1662.0,12.99452553]
[1693504325981,3.0,1662.1,1662.0,8.48189553]
[1693504326144,3.0,1662.1,1662.0,12.99452553]
[1693504326481,3.0,1662.1,1662.0,17.50715553]
[1693504329069,3.0,1662.1,1662.0,21.94489883]
[1693504336351,3.0,1662.1,1662.0,22.43528777]
[1693504339593,3.0,1662.1,1662.0,9.50949214]
[1693504339792,3.0,1662.1,1662.0,0.00423214]
[1693504340366,7.51236,1662.1,1661.8,3.0]
[1693504340567,3.002,1662.1,1661.8,3.0]
[1693504342354,3.002,1662.1,1661.8,7.51311]
[1693504342555,4.146282,1662.1,1661.8,4.51311]
[1693504344281,13.171082,1662.1,1661.9,0.00391042]
[1693504344478,13.169082,1662.1,1661.9,0.00391042]
[1693504344662,17.6068253,1662.1,1661.9,0.00391042]
[1693504344862,3.80618253,1662.0,1661.9,0.00391042]
[1693504345178,8.31881253,1662.0,1661.9,0.00391042]
[1693504345381,12.75655583,1662.0,1661.3,4.51446]
[1693504345582,12.75655583,1662.0,1661.2,3.07835428]
[1693504345583,3.87800567,1661.9,1661.2,10.53936]
[1693504345891,13.54041,1661.7,1661.0,12.51777]
[1693504346104,0.002,1661.6,1661.1,1.251777]
[1693504346296,4.51412,1661.5,1661.1,1.25574738]
[1693504346612,4.51412,1661.5,1661.1,5.77074738]
[1693504347289,4.51412,1661.5,1661.1,10.28582738]
[1693504347493,12.91061,1661.6,1661.1,11.79582738]
[1693504347689,0.002,1661.5,1661.1,11.79582738]
[1693504349065,4.51602,1661.5,1661.1,11.79582738]
[1693504349267,5.805088,1661.5,1661.1,10.54405038]
[1693504352905,10.319108,1661.5,1661.1,0.00397038]
[1693504353381,14.833128,1661.5,1661.1,0.00397038]
[1693504354081,17.833128,1661.5,1661.1,0.00397038]
[1693504355103,13.319108,1661.5,1661.1,4.51902038]
[1693504355617,3.0,1661.5,1661.2,2.9277433]
[1693504355919,3.0,1661.5,1661.3,6.50453]
[1693504356078,3.0,1661.5,1661.3,11.01906]
[1693504356282,3.0,1661.5,1661.3,11.02301539]
[1693504356683,3.0,1661.5,1661.3,2.33050126]
[1693504356895,7.514,1661.5,1661.3,0.00395539]
[1693504359393,7.514,1661.5,1661.2,4.51479]
[1693504360315,7.514,1661.5,1661.3,0.00395539]
[1693504361416,3.0,1661.5,1661.3,0.00395539]
[1693504361787,3.0,1661.5,1661.3,4.51846539]
[1693504362187,3.0,1661.5,1661.3,5.57278093]
[1693504363525,3.0,1661.5,1661.3,4.51846539]
[1693504366901,3.0,1661.5,1661.3,0.00395539]
[1693504372738,3.0,1661.5,1661.3,4.51841539]
[1693504374002,3.0,1661.5,1661.3,10.54294539]
[1693504376407,3.0,1661.5,1661.3,4.51841539]
[1693504377022,16.0931593,1661.5,1661.3,0.00395539]
[1693504377338,20.6072693,1661.5,1660.9,0.002]
[1693504377742,2.0403,1661.4,1660.9,0.002]
[1693504377941,9.02927,1661.3,1660.9,0.002]
[1693504378310,10.93377,1661.3,1661.0,0.00367042]
[1693504378511,12.492157,1661.3,1661.0,0.00367042]
[1693504379336,12.492157,1661.3,1660.9,1.04874897]
[1693504379528,12.492157,1661.3,1661.0,0.002]
[1693504380339,1.2492157,1661.2,1661.1,0.00366292]
[1693504380541,5.7640157,1661.2,1661.1,0.00366292]
[1693504381222,7.8225157,1661.2,1661.1,0.00366292]
[1693504381415,7.8225157,1661.2,1660.9,4.51757]
[1693504381616,6.5733,1661.2,1660.9,4.51757]
[1693504382449,6.5733,1661.2,1661.0,0.00367042]
[1693504383917,6.5733,1661.2,1661.0,1.05041491]
[1693504386039,6.4191,1661.3,1661.0,1.05041491]
[1693504386243,3.9102,1661.3,1661.0,8.47360928]
[1693504386439,3.9102,1661.3,1661.1,1.04674449]
[1693504386639,1.8183,1661.4,1661.1,11.58689449]
[1693504386848,6.9445,1661.5,1661.3,6.02453]
[1693504387150,6.9445,1661.5,1661.3,10.23564323]
[1693504387151,3.0,1661.5,1661.3,10.23564323]
[1693504387855,3.0,1661.5,1661.4,0.00364042]
[1693504388220,3.0,1661.5,1661.3,10.23564323]
[1693504388561,3.0,1661.5,1661.4,1.51]
[1693504389128,3.0,1661.5,1661.4,1.04653026]
[1693504389434,3.0,1661.5,1661.4,12.63698703]
[1693504389643,3.0,1661.5,1661.4,13.11698703]
[1693504390356,3.0,1661.5,1661.4,8.60272703]
[1693504390556,3.0,1661.5,1661.4,1.04653257]
[1693504390727,3.0,1661.5,1661.3,4.51439]
[1693504390932,3.0,1661.5,1661.2,2.13734171]
[1693504390933,7.51399,1661.5,1661.2,2.13734171]
[1693504391133,7.51399,1661.5,1661.3,1.04658969]
[1693504391328,7.51399,1661.5,1661.3,1.05023761]
[1693504393152,9.168375,1661.5,1661.3,0.00364792]
[1693504393357,18.196355,1661.5,1661.3,0.00364792]
[1693504393558,20.322755,1661.5,1661.3,0.00364792]
[1693504393734,22.229355,1661.5,1661.3,0.00364792]
[1693504394364,22.229355,1661.5,1661.1,1.04671279]
[1693504394540,22.229355,1661.5,1661.1,7.07168279]
[1693504394541,11.54699,1661.5,1661.1,7.07168279]
[1693504394736,11.54699,1661.5,1661.1,10.54005]
[1693504395261,11.54699,1661.5,1661.2,0.00365542]
[1693504396335,11.54699,1661.5,1661.2,4.51845542]
[1693504397371,11.54699,1661.5,1661.2,0.00365542]
[1693504400158,13.604656,1661.5,1661.2,0.00365542]
[1693504401583,18.118646,1661.5,1661.2,0.00365542]
[1693504402245,2.9277433,1661.4,1660.8,1.8937]
[1693504402455,15.05403,1661.3,1660.9,0.002]
[1693504402689,1.505403,1661.2,1660.7,0.002]
[1693504402997,9.03042,1661.1,1660.7,0.002]
[1693504403150,11.09432,1661.1,1660.7,0.002]
[1693504403349,11.09432,1661.1,1660.8,0.0033979]
[1693504403567,11.09432,1661.1,1660.8,0.0053979]
[1693504403762,12.9885563,1661.1,1660.8,0.0053979]
[1693504404294,8.4733463,1661.1,1660.8,0.0053979]
[1693504404598,20.4313796,1661.1,1660.8,0.0053979]
[1693504405267,20.4313796,1661.1,1660.8,0.002]
[1693504405699,15.9161696,1661.1,1660.8,0.002]
[1693504405903,1.59161696,1661.0,1660.8,0.002]
[1693504406053,6.10706696,1661.0,1660.8,0.002]
[1693504406250,6.10706696,1661.0,1660.9,0.0033904]
[1693504407355,6.10706696,1661.0,1660.7,0.002]
[1693504408412,6.10706696,1661.0,1660.8,0.0033979]
[1693504408556,0.6107067,1660.9,1660.8,0.0033979]
[1693504409404,0.6107067,1660.9,1660.6,4.51831]
[1693504409559,10.62264696,1661.0,1660.6,4.51831]
[1693504409756,10.62264696,1661.0,1660.7,0.002]
[1693504410357,10.62264696,1661.0,1660.8,0.0033979]
[1693504412539,1.8276,1661.2,1660.9,1.51]
[1693504412826,12.9374,1661.4,1661.0,4.51535]
[1693504413462,8.42299,1661.4,1661.1,0.00324463]
[1693504413706,12.93749,1661.4,1661.1,0.00324463]
[1693504414300,12.93749,1661.4,1661.0,0.48]
[1693504417604,20.3797333,1661.4,1660.9,0.002]
[1693504419476,2.9277433,1661.3,1660.9,0.002]
[1693504419811,4.5151,1661.1,1660.7,0.002]
[1693504419962,5.41811,1661.1,1660.7,0.002]
[1693504420158,7.33321,1661.1,1660.7,0.002]
[1693504420863,11.84831,1661.1,1660.7,0.002]
[1693504421589,10.2609533,1661.1,1660.7,0.002]
[1693504421794,14.7760333,1661.1,1660.7,0.002]
[1693504422120,5.99314333,1661.0,1660.7,0.002]
[1693504422258,8.03304333,1661.0,1660.7,0.002]
[1693504422889,3.51750333,1661.0,1660.7,4.5181]
[1693504423095,2.0399,1661.0,1660.7,9.03426]
[1693504423280,6.43019,1661.1,1660.7,10.54426]
[1693504423473,6.43019,1661.1,1660.8,0.002]
[1693504423797,10.94528,1661.1,1660.8,0.002]
[1693504423997,12.698191,1661.1,1660.8,0.002]
[1693504424598,12.698191,1661.1,1660.7,0.002]